[Event "Titled Tuesday Blitz December 13 Late 2022"]
[White "Sailer, Mike"]
[Black "Meduri, Aakaash"]
[WhiteFideId "2012901"]
[BlackFideId "2032252"]
[WhiteElo "2109"]
[BlackElo "2113"]
[Result "0-1"]
[Round "03"]
[TimeControl "180+1"]
[Date "2022.12.14"]
[WhiteClock "0:00:01"]
[BlackClock "0:00:04"]

1. Nf3 {[%clk 0:03:00]}  d5 {[%clk 0:02:59]} 2. c4 {[%clk 0:02:59]}  c6 {[%clk 0:02:54]} 3. g3 {[%clk 0:02:58]}  g6 {[%clk 0:02:51]} 4. Bg2 {[%clk 0:02:56]}  Bg7 {[%clk 0:02:51]} 5. O-O {[%clk 0:02:55]}  dxc4 {[%clk 0:02:48]} 6. a4 {[%clk 0:02:55]}  e5 {[%clk 0:02:48]} 7. Na3 {[%clk 0:02:54]}  Be6 {[%clk 0:02:46]} 8. Qc2 {[%clk 0:02:54]}  Ne7 {[%clk 0:02:44]} 9. Nxc4 {[%clk 0:02:51]}  Qc7 {[%clk 0:02:44]} 10. Rb1 {[%clk 0:02:40]}  O-O {[%clk 0:02:41]} 11. b4 {[%clk 0:02:40]}  Nd7 {[%clk 0:02:40]} 12. Bb2 {[%clk 0:02:33]}  h6 {[%clk 0:02:35]} 13. Rfc1 {[%clk 0:02:32]}  Rac8 {[%clk 0:02:33]} 14. d3 {[%clk 0:02:32]}  Nd5 {[%clk 0:02:22]} 15. b5 {[%clk 0:02:22]}  cxb5 {[%clk 0:02:19]} 16. axb5 {[%clk 0:02:22]}  N5b6 {[%clk 0:02:17]} 17. Nfd2 {[%clk 0:02:13]}  Bd5 {[%clk 0:02:15]} 18. Bxd5 {[%clk 0:02:11]}  Nxd5 {[%clk 0:02:15]} 19. Ne4 {[%clk 0:01:59]}  Qb8 {[%clk 0:01:26]} 20. Ned6 {[%clk 0:01:50]}  Rc7 {[%clk 0:01:18]} 21. Qd2 {[%clk 0:01:44]}  Qd8 {[%clk 0:01:10]} 22. Ba3 {[%clk 0:01:35]}  Kh7 {[%clk 0:01:06]} 23. Rc2 {[%clk 0:01:27]}  f5 {[%clk 0:01:02]} 24. Rbc1 {[%clk 0:01:27]}  f4 {[%clk 0:01:01]} 25. b6 {[%clk 0:01:10]}  N7xb6 {[%clk 0:00:52]} 26. Nxb6 {[%clk 0:01:02]}  Rxc2 {[%clk 0:00:48]} 27. Qxc2 {[%clk 0:00:56]}  fxg3 {[%clk 0:00:45]} 28. hxg3 {[%clk 0:00:53]}  Qxb6 {[%clk 0:00:44]} 29. e4 {[%clk 0:00:44]}  Nf6 {[%clk 0:00:12]} 30. Nc4 {[%clk 0:00:38]}  Qd4 {[%clk 0:00:13]} 31. Bxf8 {[%clk 0:00:37]}  Bxf8 {[%clk 0:00:14]} 32. Ne3 {[%clk 0:00:36]}  Bg7 {[%clk 0:00:08]} 33. Qc3 {[%clk 0:00:36]}  Qd6 {[%clk 0:00:08]} 34. Qc7 {[%clk 0:00:24]}  Qxd3 {[%clk 0:00:07]} 35. Qxb7 {[%clk 0:00:24]}  Qxe4 {[%clk 0:00:06]} 36. Qxe4 {[%clk 0:00:20]}  Nxe4 {[%clk 0:00:07]} 37. Ra1 {[%clk 0:00:16]}  Nd2 {[%clk 0:00:03]} 38. Rxa7 {[%clk 0:00:16]}  e4 {[%clk 0:00:04]} 39. Re7 {[%clk 0:00:13]}  h5 {[%clk 0:00:02]} 40. Nd5 {[%clk 0:00:12]}  Kh6 {[%clk 0:00:03]} 41. Re6 {[%clk 0:00:09]}  Bd4 {[%clk 0:00:02]} 42. Nf6 {[%clk 0:00:08]}  Nf3+ {[%clk 0:00:02]} 43. Kg2 {[%clk 0:00:08]}  Ng5 {[%clk 0:00:02]} 44. Rxe4 {[%clk 0:00:07]}  Bxf6 {[%clk 0:00:02]} 45. Ra4 {[%clk 0:00:06]}  Nf7 {[%clk 0:00:02]} 46. f4 {[%clk 0:00:07]}  Kg7 {[%clk 0:00:03]} 47. Ra6 {[%clk 0:00:07]}  Be7 {[%clk 0:00:03]} 48. Ra7 {[%clk 0:00:07]}  Bc5 {[%clk 0:00:04]} 49. Rc7 {[%clk 0:00:07]}  Bd4 {[%clk 0:00:04]} 50. Kf3 {[%clk 0:00:07]}  Bb2 {[%clk 0:00:04]} 51. Ra7 {[%clk 0:00:07]}  Bf6 {[%clk 0:00:03]} 52. Rb7 {[%clk 0:00:07]}  Bd8 {[%clk 0:00:03]} 53. Ra7 {[%clk 0:00:07]}  Bb6 {[%clk 0:00:04]} 54. Rb7 {[%clk 0:00:08]}  Bc5 {[%clk 0:00:04]} 55. Rc7 {[%clk 0:00:08]}  Bd6 {[%clk 0:00:04]} 56. Rd7 {[%clk 0:00:08]}  Kf6 {[%clk 0:00:05]} 57. Ra7 {[%clk 0:00:08]}  Ke6 {[%clk 0:00:06]} 58. Rb7 {[%clk 0:00:09]}  Nh6 {[%clk 0:00:06]} 59. Ra7 {[%clk 0:00:09]}  Nf5 {[%clk 0:00:06]} 60. Ra6 {[%clk 0:00:09]}  Nd4+ {[%clk 0:00:07]} 61. Ke4 {[%clk 0:00:09]}  Ne2 {[%clk 0:00:07]} 62. Kf3 {[%clk 0:00:09]}  Nd4+ {[%clk 0:00:07]} 63. Ke4 {[%clk 0:00:09]}  Nb3 {[%clk 0:00:07]} 64. Ra8 {[%clk 0:00:09]}  Nc5+ {[%clk 0:00:07]} 65. Kf3 {[%clk 0:00:08]}  Kf6 {[%clk 0:00:07]} 66. Ra6 {[%clk 0:00:08]}  Ke6 {[%clk 0:00:07]} 67. Rb6 {[%clk 0:00:07]}  Nd7 {[%clk 0:00:07]} 68. Rb7 {[%clk 0:00:07]}  Nf6 {[%clk 0:00:08]} 69. Ra7 {[%clk 0:00:07]}  Nd5 {[%clk 0:00:06]} 70. Ra6 {[%clk 0:00:06]}  Nc7 {[%clk 0:00:07]} 71. Ra7 {[%clk 0:00:06]}  Kf6 {[%clk 0:00:05]} 72. Ke4 {[%clk 0:00:06]}  Ne8 {[%clk 0:00:04]} 73. Kd5 {[%clk 0:00:05]}  Bb4 {[%clk 0:00:04]} 74. Ra6+ {[%clk 0:00:05]}  Kf5 {[%clk 0:00:05]} 75. Rb6 {[%clk 0:00:04]}  Be1 {[%clk 0:00:05]} 76. Rb3 {[%clk 0:00:02]}  Nf6+ {[%clk 0:00:06]} 77. Kd6 {[%clk 0:00:02]}  Bxg3 {[%clk 0:00:04]} 78. Ke7 {[%clk 0:00:01]}  Ne4 {[%clk 0:00:04]} 0-1


[Site "https://www.chess.com"]

[Event "Titled Tuesday Blitz December 13 Late 2022"]
[White "Sariego Figueredo, Wilfredo"]
[Black "Miszler, Levente"]
[WhiteFideId "3500080"]
[BlackFideId "763276"]
[WhiteElo "2309"]
[BlackElo "2176"]
[Result "1-0"]
[Round "03"]
[TimeControl "180+1"]
[Date "2022.12.14"]
[WhiteClock "0:00:02"]
[BlackClock "0:00:02"]

1. d4 {[%clk 0:02:59]}  d5 {[%clk 0:02:58]} 2. Bf4 {[%clk 0:02:59]}  h6 {[%clk 0:02:52]} 3. e3 {[%clk 0:02:59]}  g5 {[%clk 0:02:52]} 4. Bg3 {[%clk 0:02:55]}  Bg7 {[%clk 0:02:52]} 5. c3 {[%clk 0:02:53]}  Nc6 {[%clk 0:02:53]} 6. Bd3 {[%clk 0:02:51]}  Nf6 {[%clk 0:02:49]} 7. Nf3 {[%clk 0:02:49]}  Bg4 {[%clk 0:02:48]} 8. Qb3 {[%clk 0:02:47]}  Qc8 {[%clk 0:02:43]} 9. Nbd2 {[%clk 0:02:42]}  O-O {[%clk 0:02:40]} 10. h4 {[%clk 0:02:35]}  Bxf3 {[%clk 0:02:40]} 11. Nxf3 {[%clk 0:02:33]}  g4 {[%clk 0:02:40]} 12. Ne5 {[%clk 0:02:32]}  h5 {[%clk 0:02:37]} 13. Qc2 {[%clk 0:02:26]}  Nd7 {[%clk 0:02:28]} 14. Nxc6 {[%clk 0:02:13]}  bxc6 {[%clk 0:02:29]} 15. f3 {[%clk 0:02:05]}  e5 {[%clk 0:02:25]} 16. fxg4 {[%clk 0:02:01]}  e4 {[%clk 0:02:24]} 17. Be2 {[%clk 0:02:01]}  Nf6 {[%clk 0:02:12]} 18. gxh5 {[%clk 0:01:54]}  Bh6 {[%clk 0:02:10]} 19. Bf4 {[%clk 0:01:47]}  Kh7 {[%clk 0:02:09]} 20. Bxh6 {[%clk 0:01:39]}  Kxh6 {[%clk 0:02:10]} 21. O-O-O {[%clk 0:01:37]}  Qe6 {[%clk 0:02:03]} 22. Rdf1 {[%clk 0:01:35]}  Rg8 {[%clk 0:02:03]} 23. g4 {[%clk 0:01:25]}  Nxg4 {[%clk 0:02:00]} 24. Bxg4 {[%clk 0:01:24]}  Rxg4 {[%clk 0:02:01]} 25. Qf2 {[%clk 0:01:19]}  Rg7 {[%clk 0:01:45]} 26. Rhg1 {[%clk 0:01:01]}  Rag8 {[%clk 0:01:40]} 27. Qf4+ {[%clk 0:00:56]}  Kxh5 {[%clk 0:01:24]} 28. Rg5+ {[%clk 0:00:49]}  Rxg5 {[%clk 0:01:22]} 29. hxg5 {[%clk 0:00:50]}  Rxg5 {[%clk 0:01:08]} 30. Rh1+ {[%clk 0:00:38]}  Kg6 {[%clk 0:01:08]} 31. Qxc7 {[%clk 0:00:35]}  Rg2 {[%clk 0:00:59]} 32. Qf4 {[%clk 0:00:25]}  Kg7 {[%clk 0:00:46]} 33. Qb8 {[%clk 0:00:14]}  Kf6 {[%clk 0:00:22]} 34. Rh6+ {[%clk 0:00:13]}  Rg6 {[%clk 0:00:22]} 35. Rh1 {[%clk 0:00:12]}  Qg4 {[%clk 0:00:18]} 36. Qd8+ {[%clk 0:00:10]}  Ke6 {[%clk 0:00:16]} 37. Qc8+ {[%clk 0:00:10]}  Ke7 {[%clk 0:00:16]} 38. Qc7+ {[%clk 0:00:07]}  Ke6 {[%clk 0:00:09]} 39. Qe5+ {[%clk 0:00:06]}  Kd7 {[%clk 0:00:09]} 40. Qb8 {[%clk 0:00:05]}  Qe2 {[%clk 0:00:07]} 41. Qxa7+ {[%clk 0:00:04]}  Kd6 {[%clk 0:00:07]} 42. Qb8+ {[%clk 0:00:03]}  Kd7 {[%clk 0:00:07]} 43. Qb7+ {[%clk 0:00:03]}  Kd6 {[%clk 0:00:07]} 44. Qb8+ {[%clk 0:00:04]}  Kd7 {[%clk 0:00:07]} 45. Qa7+ {[%clk 0:00:04]}  Ke6 {[%clk 0:00:07]} 46. Qa4 {[%clk 0:00:02]}  Qxe3+ {[%clk 0:00:06]} 47. Kb1 {[%clk 0:00:02]}  Qd3+ {[%clk 0:00:06]} 48. Ka1 {[%clk 0:00:02]}  Kd6 {[%clk 0:00:06]} 49. Qb4+ {[%clk 0:00:02]}  Kd7 {[%clk 0:00:04]} 50. Qb7+ {[%clk 0:00:02]}  Kd6 {[%clk 0:00:04]} 51. Qb8+ {[%clk 0:00:02]}  Kd7 {[%clk 0:00:04]} 52. Qb7+ {[%clk 0:00:02]}  Kd6 {[%clk 0:00:03]} 53. Qxf7 {[%clk 0:00:03]}  Rg1+ {[%clk 0:00:01]} 54. Rxg1 {[%clk 0:00:03]}  Qe3 {[%clk 0:00:02]} 55. Rg6# {[%clk 0:00:02]} 1-0


[Site "https://www.chess.com"]

[Event "Titled Tuesday Blitz December 13 Late 2022"]
[White "Shapiro, Daniel"]
[Black "Marcolino, Daniel Mattos"]
[WhiteFideId "2001780"]
[BlackFideId "2106841"]
[WhiteElo "2363"]
[BlackElo "2134"]
[Result "1-0"]
[Round "03"]
[TimeControl "180+1"]
[Date "2022.12.14"]
[WhiteClock "0:00:13"]
[BlackClock "0:00:13"]

1. d4 {[%clk 0:03:00]}  d5 {[%clk 0:03:00]} 2. c4 {[%clk 0:03:00]}  e6 {[%clk 0:02:59]} 3. Nf3 {[%clk 0:03:00]}  Nf6 {[%clk 0:02:59]} 4. g3 {[%clk 0:03:01]}  dxc4 {[%clk 0:02:59]} 5. Bg2 {[%clk 0:03:01]}  a6 {[%clk 0:02:57]} 6. O-O {[%clk 0:03:00]}  Nc6 {[%clk 0:02:50]} 7. a4 {[%clk 0:02:42]}  Rb8 {[%clk 0:02:47]} 8. e3 {[%clk 0:02:24]}  Bb4 {[%clk 0:02:36]} 9. Qc2 {[%clk 0:02:15]}  b5 {[%clk 0:02:35]} 10. axb5 {[%clk 0:02:14]}  axb5 {[%clk 0:02:36]} 11. b3 {[%clk 0:02:15]}  Na5 {[%clk 0:02:09]} 12. bxc4 {[%clk 0:02:04]}  Nxc4 {[%clk 0:02:09]} 13. Ne5 {[%clk 0:01:52]}  Nxe5 {[%clk 0:01:47]} 14. dxe5 {[%clk 0:01:53]}  Nd5 {[%clk 0:01:48]} 15. Rd1 {[%clk 0:01:50]}  Qe7 {[%clk 0:01:35]} 16. e4 {[%clk 0:01:45]}  Nb6 {[%clk 0:01:27]} 17. Qc6+ {[%clk 0:01:45]}  Bd7 {[%clk 0:01:10]} 18. Qxc7 {[%clk 0:01:42]}  O-O {[%clk 0:01:11]} 19. Qc2 {[%clk 0:01:21]}  Rfc8 {[%clk 0:01:08]} 20. Qe2 {[%clk 0:01:21]}  Nc4 {[%clk 0:00:58]} 21. Ra7 {[%clk 0:01:07]}  Rd8 {[%clk 0:00:59]} 22. h4 {[%clk 0:00:52]}  h6 {[%clk 0:00:43]} 23. Bf4 {[%clk 0:00:47]}  Qe8 {[%clk 0:00:38]} 24. Qg4 {[%clk 0:00:43]}  Kf8 {[%clk 0:00:26]} 25. Qh5 {[%clk 0:00:40]}  Ra8 {[%clk 0:00:18]} 26. Rc7 {[%clk 0:00:29]}  Rac8 {[%clk 0:00:17]} 27. Rb7 {[%clk 0:00:23]}  Rb8 {[%clk 0:00:17]} 28. Rxb8 {[%clk 0:00:23]}  Rxb8 {[%clk 0:00:17]} 29. Rd3 {[%clk 0:00:18]}  Bc6 {[%clk 0:00:14]} 30. Bxh6 {[%clk 0:00:14]}  Rd8 {[%clk 0:00:12]} 31. Bxg7+ {[%clk 0:00:13]}  Kxg7 {[%clk 0:00:12]} 32. Qg5+ {[%clk 0:00:13]}  Kf8 {[%clk 0:00:13]} 33. Rxd8 {[%clk 0:00:13]} 1-0


[Site "https://www.chess.com"]

[Event "Titled Tuesday Blitz December 13 Late 2022"]
[White "Silvestre, Christian"]
[Black "Dias, Joao Batista"]
[WhiteFideId "30956269"]
[BlackFideId "2108240"]
[WhiteElo "2337"]
[BlackElo "1898"]
[Result "1-0"]
[Round "03"]
[TimeControl "180+1"]
[Date "2022.12.14"]
[WhiteClock "0:00:08"]
[BlackClock "0:00:24"]

1. d4 {[%clk 0:02:59]}  d5 {[%clk 0:02:59]} 2. Bg5 {[%clk 0:02:57]}  Nf6 {[%clk 0:02:57]} 3. Bxf6 {[%clk 0:02:55]}  exf6 {[%clk 0:02:56]} 4. e3 {[%clk 0:02:56]}  Bd6 {[%clk 0:02:56]} 5. c4 {[%clk 0:02:55]}  dxc4 {[%clk 0:02:54]} 6. Bxc4 {[%clk 0:02:54]}  O-O {[%clk 0:02:54]} 7. Nc3 {[%clk 0:02:53]}  b6 {[%clk 0:02:53]} 8. Bd5 {[%clk 0:02:45]}  c6 {[%clk 0:02:53]} 9. Bf3 {[%clk 0:02:44]}  Bb7 {[%clk 0:02:53]} 10. Nge2 {[%clk 0:02:44]}  Qe7 {[%clk 0:02:53]} 11. O-O {[%clk 0:02:42]}  c5 {[%clk 0:02:53]} 12. Bxb7 {[%clk 0:02:41]}  Qxb7 {[%clk 0:02:52]} 13. dxc5 {[%clk 0:02:41]}  Bxc5 {[%clk 0:02:52]} 14. Qa4 {[%clk 0:02:37]}  Nc6 {[%clk 0:02:48]} 15. Rac1 {[%clk 0:02:37]}  Rad8 {[%clk 0:02:39]} 16. Ne4 {[%clk 0:02:34]}  Ne5 {[%clk 0:02:26]} 17. N2g3 {[%clk 0:02:20]}  Be7 {[%clk 0:02:18]} 18. Rfd1 {[%clk 0:02:13]}  g6 {[%clk 0:02:13]} 19. Nc3 {[%clk 0:02:04]}  Nd3 {[%clk 0:02:02]} 20. Rb1 {[%clk 0:02:01]}  Nc5 {[%clk 0:02:01]} 21. Qc4 {[%clk 0:01:58]}  Rc8 {[%clk 0:01:59]} 22. Nd5 {[%clk 0:01:53]}  Kg7 {[%clk 0:01:52]} 23. Rbc1 {[%clk 0:01:51]}  Rfd8 {[%clk 0:01:43]} 24. Nxe7 {[%clk 0:01:38]}  Qxe7 {[%clk 0:01:42]} 25. Qg4 {[%clk 0:01:39]}  Qe6 {[%clk 0:01:31]} 26. Nh5+ {[%clk 0:01:35]}  Kg8 {[%clk 0:01:21]} 27. Qxe6 {[%clk 0:01:21]}  Nxe6 {[%clk 0:01:17]} 28. Nxf6+ {[%clk 0:01:18]}  Kg7 {[%clk 0:01:16]} 29. Ne4 {[%clk 0:01:18]}  Kf8 {[%clk 0:01:11]} 30. h4 {[%clk 0:01:15]}  h5 {[%clk 0:01:10]} 31. Rxc8 {[%clk 0:01:11]}  Rxc8 {[%clk 0:01:09]} 32. Rd7 {[%clk 0:01:10]}  a5 {[%clk 0:00:59]} 33. Nd6 {[%clk 0:01:04]}  Rc6 {[%clk 0:00:49]} 34. Rxf7+ {[%clk 0:00:55]}  Kg8 {[%clk 0:00:46]} 35. Rd7 {[%clk 0:00:55]}  Nc5 {[%clk 0:00:46]} 36. Rd8+ {[%clk 0:00:54]}  Kg7 {[%clk 0:00:46]} 37. Nc4 {[%clk 0:00:47]}  Ne4 {[%clk 0:00:43]} 38. b3 {[%clk 0:00:44]}  b5 {[%clk 0:00:42]} 39. Rd7+ {[%clk 0:00:35]}  Kg8 {[%clk 0:00:40]} 40. Ne5 {[%clk 0:00:32]}  Rc1+ {[%clk 0:00:40]} 41. Kh2 {[%clk 0:00:32]}  Nxf2 {[%clk 0:00:40]} 42. Nxg6 {[%clk 0:00:31]}  Ng4+ {[%clk 0:00:38]} 43. Kg3 {[%clk 0:00:30]}  Nxe3 {[%clk 0:00:32]} 44. Kf4 {[%clk 0:00:30]}  Nxg2+ {[%clk 0:00:31]} 45. Kg5 {[%clk 0:00:30]}  Rc5+ {[%clk 0:00:29]} 46. Kh6 {[%clk 0:00:29]}  Rc6 {[%clk 0:00:24]} 47. Rg7# {[%clk 0:00:08]} 1-0


[Site "https://www.chess.com"]

[Event "Titled Tuesday Blitz December 13 Late 2022"]
[White "Sourath Biswas"]
[Black "Rodriguez Santiago, Jaime"]
[WhiteFideId "35091484"]
[BlackFideId "3100898"]
[WhiteElo "2164"]
[BlackElo "2025"]
[Result "1-0"]
[Round "03"]
[TimeControl "180+1"]
[Date "2022.12.14"]
[WhiteClock "0:00:04"]
[BlackClock "0:00:01"]

1. d4 {[%clk 0:03:00]}  Nf6 {[%clk 0:02:59]} 2. Bf4 {[%clk 0:03:01]}  d5 {[%clk 0:02:57]} 3. e3 {[%clk 0:03:01]}  c5 {[%clk 0:02:54]} 4. Nf3 {[%clk 0:02:58]}  Nc6 {[%clk 0:02:54]} 5. Nbd2 {[%clk 0:02:58]}  e6 {[%clk 0:02:53]} 6. c3 {[%clk 0:02:58]}  cxd4 {[%clk 0:02:53]} 7. exd4 {[%clk 0:02:58]}  Nh5 {[%clk 0:02:53]} 8. Be3 {[%clk 0:02:59]}  Bd6 {[%clk 0:02:47]} 9. Ne5 {[%clk 0:02:59]}  Nf6 {[%clk 0:02:45]} 10. g4 {[%clk 0:03:00]}  Nxe5 {[%clk 0:02:37]} 11. dxe5 {[%clk 0:02:59]}  Bxe5 {[%clk 0:02:37]} 12. f4 {[%clk 0:02:59]}  Bd6 {[%clk 0:02:35]} 13. g5 {[%clk 0:02:59]}  Nd7 {[%clk 0:02:29]} 14. Nf3 {[%clk 0:02:53]}  Qc7 {[%clk 0:02:23]} 15. f5 {[%clk 0:02:37]}  Ne5 {[%clk 0:02:03]} 16. f6 {[%clk 0:02:32]}  gxf6 {[%clk 0:01:49]} 17. gxf6 {[%clk 0:02:32]}  Nxf3+ {[%clk 0:01:47]} 18. Qxf3 {[%clk 0:02:33]}  Bd7 {[%clk 0:01:46]} 19. O-O-O {[%clk 0:02:12]}  Qa5 {[%clk 0:01:36]} 20. Kb1 {[%clk 0:02:04]}  O-O-O {[%clk 0:01:29]} 21. Bh3 {[%clk 0:01:54]}  Kb8 {[%clk 0:01:25]} 22. Bf4 {[%clk 0:01:32]}  Qc7 {[%clk 0:01:20]} 23. Bxd6 {[%clk 0:01:27]}  Qxd6 {[%clk 0:01:21]} 24. Qh5 {[%clk 0:01:28]}  Be8 {[%clk 0:01:17]} 25. Rhg1 {[%clk 0:00:21]}  Qf4 {[%clk 0:01:06]} 26. Rg7 {[%clk 0:00:16]}  Qxf6 {[%clk 0:01:02]} 27. Rdg1 {[%clk 0:00:16]}  h6 {[%clk 0:00:50]} 28. a3 {[%clk 0:00:14]}  Qf4 {[%clk 0:00:47]} 29. Ka2 {[%clk 0:00:14]}  Qc4+ {[%clk 0:00:46]} 30. Ka1 {[%clk 0:00:15]}  Bb5 {[%clk 0:00:42]} 31. Qxf7 {[%clk 0:00:13]}  Bc6 {[%clk 0:00:32]} 32. Qxe6 {[%clk 0:00:11]}  Rhf8 {[%clk 0:00:28]} 33. Qe5+ {[%clk 0:00:10]}  Ka8 {[%clk 0:00:27]} 34. R7g4 {[%clk 0:00:09]}  Qb3 {[%clk 0:00:24]} 35. Rd4 {[%clk 0:00:09]}  Rf2 {[%clk 0:00:20]} 36. Rb4 {[%clk 0:00:09]}  Qc2 {[%clk 0:00:18]} 37. Qe7 {[%clk 0:00:08]}  Rdf8 {[%clk 0:00:16]} 38. Re1 {[%clk 0:00:05]}  a6 {[%clk 0:00:12]} 39. a4 {[%clk 0:00:05]}  R2f7 {[%clk 0:00:06]} 40. Qc5 {[%clk 0:00:05]}  Rc7 {[%clk 0:00:06]} 41. Qxf8+ {[%clk 0:00:04]}  Ka7 {[%clk 0:00:06]} 42. Qc5+ {[%clk 0:00:05]}  Kb8 {[%clk 0:00:06]} 43. Qb6 {[%clk 0:00:05]}  Qd2 {[%clk 0:00:02]} 44. Rb1 {[%clk 0:00:04]}  d4 {[%clk 0:00:03]} 45. Be6 {[%clk 0:00:05]}  dxc3 {[%clk 0:00:02]} 46. Ba2 {[%clk 0:00:04]}  cxb2+ {[%clk 0:00:03]} 47. R4xb2 {[%clk 0:00:04]}  Qc3 {[%clk 0:00:03]} 48. Qxa6 {[%clk 0:00:03]}  Bxa4 {[%clk 0:00:03]} 49. Qxa4 {[%clk 0:00:03]}  Rc5 {[%clk 0:00:02]} 50. Qb3 {[%clk 0:00:04]}  Qe5 {[%clk 0:00:01]} 51. Qxb7# {[%clk 0:00:04]} 1-0


[Site "https://www.chess.com"]

[Event "Titled Tuesday Blitz December 13 Late 2022"]
[White "Stanisz, Patryk"]
[Black "Rodriguez Fontecha, Marcos"]
[WhiteFideId "1123106"]
[BlackFideId "2256576"]
[WhiteElo "2069"]
[BlackElo "2263"]
[Result "0-1"]
[Round "03"]
[TimeControl "180+1"]
[Date "2022.12.14"]
[WhiteClock "0:00:03"]
[BlackClock "0:00:58"]

1. d4 {[%clk 0:03:00]}  d5 {[%clk 0:02:59]} 2. c4 {[%clk 0:03:00]}  Nc6 {[%clk 0:02:59]} 3. Nf3 {[%clk 0:03:00]}  e5 {[%clk 0:02:59]} 4. dxe5 {[%clk 0:02:59]}  Bb4+ {[%clk 0:02:58]} 5. Bd2 {[%clk 0:02:56]}  dxc4 {[%clk 0:02:59]} 6. a3 {[%clk 0:02:54]}  Bc5 {[%clk 0:02:56]} 7. e3 {[%clk 0:02:50]}  Be6 {[%clk 0:02:53]} 8. Qc1 {[%clk 0:02:39]}  b5 {[%clk 0:02:42]} 9. Nc3 {[%clk 0:02:24]}  a6 {[%clk 0:02:35]} 10. Ne4 {[%clk 0:02:13]}  Bb6 {[%clk 0:02:35]} 11. Be2 {[%clk 0:01:52]}  Nge7 {[%clk 0:02:35]} 12. Neg5 {[%clk 0:01:52]}  Bf5 {[%clk 0:02:26]} 13. e4 {[%clk 0:01:48]}  Bg6 {[%clk 0:02:21]} 14. e6 {[%clk 0:01:30]}  f6 {[%clk 0:02:18]} 15. Nf7 {[%clk 0:01:17]}  Bxf7 {[%clk 0:02:18]} 16. exf7+ {[%clk 0:01:18]}  Kxf7 {[%clk 0:02:18]} 17. O-O {[%clk 0:01:16]}  Re8 {[%clk 0:02:16]} 18. Bc3 {[%clk 0:01:09]}  Ng6 {[%clk 0:02:12]} 19. Rd1 {[%clk 0:01:07]}  Qe7 {[%clk 0:02:11]} 20. Re1 {[%clk 0:00:49]}  Qc5 {[%clk 0:02:10]} 21. Rf1 {[%clk 0:00:45]}  Rxe4 {[%clk 0:02:08]} 22. Qc2 {[%clk 0:00:30]}  Rae8 {[%clk 0:02:05]} 23. Rae1 {[%clk 0:00:28]}  Nf4 {[%clk 0:02:05]} 24. Bd1 {[%clk 0:00:24]}  Nd3 {[%clk 0:01:45]} 25. Rxe4 {[%clk 0:00:13]}  Rxe4 {[%clk 0:01:46]} 26. b3 {[%clk 0:00:13]}  Qd5 {[%clk 0:01:11]} 27. bxc4 {[%clk 0:00:13]}  Rxc4 {[%clk 0:01:10]} 28. Qd2 {[%clk 0:00:08]}  Rxc3 {[%clk 0:01:05]} 29. Qxc3 {[%clk 0:00:04]}  Nxf2 {[%clk 0:01:05]} 30. Bb3 {[%clk 0:00:03]}  Ne4+ {[%clk 0:01:02]} 31. Kh1 {[%clk 0:00:02]}  Nxc3 {[%clk 0:01:02]} 32. Bxd5+ {[%clk 0:00:01]}  Nxd5 {[%clk 0:01:03]} 33. h4 {[%clk 0:00:02]}  a5 {[%clk 0:01:00]} 34. Rc1 {[%clk 0:00:03]}  Nd4 {[%clk 0:00:58]} 0-1


[Site "https://www.chess.com"]

[Event "Titled Tuesday Blitz December 13 Late 2022"]
[White "Sztokbant, Bernardo Vainzoff"]
[Black "Maksimovic, Bojan"]
[WhiteFideId "2115956"]
[BlackFideId "14408120"]
[WhiteElo "2458"]
[BlackElo "2727"]
[Result "0-1"]
[Round "03"]
[TimeControl "180+1"]
[Date "2022.12.14"]
[WhiteClock "0:00:01"]
[BlackClock "0:00:08"]

1. c4 {[%clk 0:03:00]}  Nf6 {[%clk 0:02:59]} 2. Nf3 {[%clk 0:03:00]}  g6 {[%clk 0:02:59]} 3. g3 {[%clk 0:03:00]}  Bg7 {[%clk 0:02:59]} 4. Bg2 {[%clk 0:03:01]}  O-O {[%clk 0:03:00]} 5. O-O {[%clk 0:03:02]}  d6 {[%clk 0:03:00]} 6. b3 {[%clk 0:03:02]}  e5 {[%clk 0:02:57]} 7. Bb2 {[%clk 0:03:02]}  Nc6 {[%clk 0:02:58]} 8. Nc3 {[%clk 0:03:02]}  h6 {[%clk 0:02:53]} 9. d4 {[%clk 0:02:59]}  e4 {[%clk 0:02:38]} 10. Ne1 {[%clk 0:02:57]}  Re8 {[%clk 0:02:34]} 11. d5 {[%clk 0:02:53]}  Nb8 {[%clk 0:02:27]} 12. Nc2 {[%clk 0:02:52]}  Nbd7 {[%clk 0:02:24]} 13. Ne3 {[%clk 0:02:44]}  a5 {[%clk 0:02:19]} 14. Qc2 {[%clk 0:02:42]}  Nc5 {[%clk 0:02:19]} 15. a3 {[%clk 0:02:32]}  h5 {[%clk 0:02:04]} 16. b4 {[%clk 0:02:29]}  axb4 {[%clk 0:02:03]} 17. axb4 {[%clk 0:02:30]}  Rxa1 {[%clk 0:02:02]} 18. Rxa1 {[%clk 0:02:22]}  Na6 {[%clk 0:02:03]} 19. Qb3 {[%clk 0:01:56]}  h4 {[%clk 0:02:02]} 20. Nb5 {[%clk 0:01:52]}  h3 {[%clk 0:02:00]} 21. Bh1 {[%clk 0:01:49]}  Ng4 {[%clk 0:02:01]} 22. Bxg7 {[%clk 0:01:44]}  Kxg7 {[%clk 0:02:00]} 23. Qc3+ {[%clk 0:01:38]}  Qf6 {[%clk 0:01:55]} 24. Qxf6+ {[%clk 0:01:29]}  Kxf6 {[%clk 0:01:56]} 25. Rb1 {[%clk 0:01:19]}  Nxe3 {[%clk 0:01:54]} 26. fxe3 {[%clk 0:01:20]}  Bd7 {[%clk 0:01:32]} 27. Nc3 {[%clk 0:01:20]}  Bf5 {[%clk 0:01:27]} 28. g4 {[%clk 0:01:09]}  Bxg4 {[%clk 0:01:26]} 29. Nxe4+ {[%clk 0:01:09]}  Kg7 {[%clk 0:01:26]} 30. Nf2 {[%clk 0:00:56]}  Bxe2 {[%clk 0:01:22]} 31. Nxh3 {[%clk 0:00:56]}  Bxc4 {[%clk 0:01:22]} 32. Kf2 {[%clk 0:00:56]}  Rh8 {[%clk 0:01:15]} 33. Kg3 {[%clk 0:00:55]}  Bd3 {[%clk 0:01:08]} 34. Rc1 {[%clk 0:00:52]}  Bf5 {[%clk 0:01:06]} 35. Ng5 {[%clk 0:00:45]}  Rc8 {[%clk 0:00:58]} 36. e4 {[%clk 0:00:40]}  Bd7 {[%clk 0:00:57]} 37. Rb1 {[%clk 0:00:32]}  f6 {[%clk 0:00:56]} 38. Nf3 {[%clk 0:00:32]}  Re8 {[%clk 0:00:55]} 39. Nd4 {[%clk 0:00:32]}  Rh8 {[%clk 0:00:51]} 40. Bg2 {[%clk 0:00:30]}  Kf7 {[%clk 0:00:51]} 41. b5 {[%clk 0:00:28]}  Nc5 {[%clk 0:00:50]} 42. b6 {[%clk 0:00:29]}  cxb6 {[%clk 0:00:49]} 43. Rxb6 {[%clk 0:00:30]}  Ke7 {[%clk 0:00:49]} 44. Nb3 {[%clk 0:00:20]}  Nxb3 {[%clk 0:00:44]} 45. Rxb3 {[%clk 0:00:21]}  b5 {[%clk 0:00:44]} 46. Bf1 {[%clk 0:00:19]}  Rb8 {[%clk 0:00:45]} 47. Rb4 {[%clk 0:00:19]}  Kd8 {[%clk 0:00:42]} 48. h4 {[%clk 0:00:18]}  Kc7 {[%clk 0:00:42]} 49. Bh3 {[%clk 0:00:13]}  Bxh3 {[%clk 0:00:41]} 50. Kxh3 {[%clk 0:00:13]}  Kb6 {[%clk 0:00:39]} 51. Kg4 {[%clk 0:00:12]}  Kc5 {[%clk 0:00:40]} 52. Rb1 {[%clk 0:00:13]}  b4 {[%clk 0:00:36]} 53. h5 {[%clk 0:00:13]}  gxh5+ {[%clk 0:00:36]} 54. Kf5 {[%clk 0:00:14]}  b3 {[%clk 0:00:34]} 55. Kxf6 {[%clk 0:00:13]}  b2 {[%clk 0:00:34]} 56. Ke6 {[%clk 0:00:12]}  h4 {[%clk 0:00:34]} 57. e5 {[%clk 0:00:12]}  dxe5 {[%clk 0:00:35]} 58. d6 {[%clk 0:00:13]}  Rb6 {[%clk 0:00:29]} 59. Kxe5 {[%clk 0:00:13]}  Kc6 {[%clk 0:00:18]} 60. Ke6 {[%clk 0:00:11]}  Rb3 {[%clk 0:00:09]} 61. Ke5 {[%clk 0:00:02]}  Kc5 {[%clk 0:00:08]} 62. Ke6 {[%clk 0:00:02]}  Kc6 {[%clk 0:00:08]} 63. Ke5 {[%clk 0:00:02]}  h3 {[%clk 0:00:08]} 64. Kd4 {[%clk 0:00:01]}  h2 {[%clk 0:00:08]} 65. Kc4 {[%clk 0:00:02]}  h1=Q {[%clk 0:00:07]} 66. Rxh1 {[%clk 0:00:01]}  b1=Q {[%clk 0:00:08]} 67. Rxb1 {[%clk 0:00:01]}  Rxb1 {[%clk 0:00:08]} 0-1


[Site "https://www.chess.com"]